Cogmind - Beta 17.1 @@@ ROGUE MODE // 2026.08.29 @ 22:48:25 Player: Sunvar Result: Destroyed by DP-P2F(R) with Subdweller Machine Gun Performance ------------- Evolutions (0) 0 Regions Visited (2) 400 Robots Destroyed (28) 140 Value Destroyed (763) 763 Prototype IDs (0) 0 Alien Tech Used (0) 0 Bonus (0) 0 TOTAL SCORE: 1303 Bonus ------- None Cogmind --------- Core Integrity 0/250 Matter 165/300 Energy 220/250 System Corruption 0% Temperature Cool (0) Movement Treading (260) Ox1 Location -10/Subcaves Parts ------- > --- POWER (1) -------- Ion Engine > --- PROPULSION (2) --- Light Treads Spiked Treads > --- UTILITY (2) ------ Cooling System Large Storage Unit > --- WEAPON (2) ------- Subdweller Beam Cannon Light Assault Rifle > --- INVENTORY (15) --- Subdweller Power Source Subdweller Monowheel Subdweller Monowheel Subdweller Monowheel Machine Analyzer Seismic Detector Scrap Shield Recalibrator Subdweller Laser Mini Grenade Launcher Mini Grenade Launcher Ripper Peak State ------------ > --- POWER ------------ Ion Engine > --- PROPULSION ------- Light Treads Spiked Treads > --- UTILITY ---------- Large Storage Unit Shield Generator > --- WEAPON ----------- Slug Cannon Ripper > --- INVENTORY -------- Ion Engine Subdweller Power Source Light Treads Subdweller Monowheel Subdweller Monowheel Cooling System Machine Analyzer Seismic Detector Recalibrator Particle Gun Subdweller Laser Subdweller Beam Cannon Light Assault Rifle Mini Grenade Launcher Mini Grenade Launcher [Rating: 17] Favorites ----------- Power Ion Engine Engine Ion Engine Propulsion Aluminum Leg Treads Light Treads Leg Aluminum Leg Wheel Subdweller Monowheel Utility Large Storage Unit Device Shield Generator Storage Large Storage Unit Weapon Particle Gun Energy Gun Particle Gun Energy Cannon Subdweller Beam Cannon Ballistic Gun Light Assault Rifle Ballistic Cannon Light Cannon Launcher Mini Grenade Launcher Impact Weapon Heavy Hammer Slashing Weapon Ripper Build | -11 -10 -10 ------- Run | Yrd Mat Sub Slots Evolved . | . . . Power . | . . . Propulsion . | . . . Utility . | . . . Weapon . | . . . Parts Attached 28 | 2 10 16 Power 3 | . 2 1 Engine 3 | . 2 1 Core . | . . . Reactor . | . . . Propulsion 7 | . 2 5 Treads 4 | . . 4 Leg 2 | . 2 . Wheel 1 | . . 1 Hover . | . . . Flight . | . . . Utility 7 | 1 2 4 Device 5 | 1 . 4 Storage 2 | . 2 . Processor . | . . . Hackware . | . . . Protection . | . . . Artifact . | . . . Weapon 11 | 1 4 6 Energy Gun 2 | 1 1 . Energy Cannon 1 | . . 1 Ballistic Gun 2 | . 1 1 Ballistic Cannon 2 | . 1 1 Launcher 2 | . . 2 Special Weapon . | . . . Impact Weapon 1 | . 1 . Slashing Weapon 1 | . . 1 Piercing Weapon . | . . . Special Melee Weapon . | . . . Unidentified Prototypes . | . . . Parts Lost 5 | . . 5 Power . | . . . Propulsion 1 | . . 1 Utility 2 | . . 2 Weapon 2 | . . 2 Highest Loss Streak 3 | . . 3 To Critical Strikes . | . . . Average Backups 12 | 6 10 14 Power 1 | 1 1 1 Propulsion 2 | 4 2 2 Utility 3 | . 2 4 Weapon 5 | 1 4 5 Tool/Special . | . . . Unused Backups 21 | 5 6 10 Power 2 | 1 . 1 Propulsion 8 | 2 3 3 Utility 6 | 1 1 4 Weapon 5 | 1 2 2 Tool/Special . | . . . Average Slot Usage (%) 99 | . 99 99 Engine 14 | . 14 14 Treads 13 | . . 21 Leg 14 | . 27 6 Device 13 | . 14 13 Storage 14 | . 14 14 Energy Gun 11 | . 14 10 Ballistic Gun 5 | . 12 2 Ballistic Cannon 6 | . 1 9 Slashing Weapon 3 | . . 4 Peak Build Rating 17 | 7 11 17 Average Rating 12 | 6 8 14 On Entrance 7 | 6 7 10 Avg Prop Armor Cover (%) 13 | . . 13 Naked Turns . | . . . Heaviest Build 37 | 14 32 37 Greatest Support 40 | 20 20 40 Greatest Overweight (x) 2 | . 2 1 Average Overweight (x) . | . . . Largest Inventory Capacity 15 | 8 15 15 Average Capacity 13 | 8 11 15 Most Carried 15 | 6 15 15 Average Carried 13 | 6 10 14 Final Capacity 15 | 8 15 15 Final Carried 15 | 6 15 13 Class Distribution -------------------- 98% | Mutant Dominant Class ---------------- Mutant | -10/Materials Mutant | -10/Subcaves Resources | -11 -10 -10 ----------- Run | Yrd Mat Sub Matter Collected 943 | 224 220 499 Remotely . | . . . Salvage Created 888 | 90 461 337 Parts 60 | 5 28 27 Haulers Intercepted 2 | . 2 . Recyclers Shooed . | . . . Parts Field Recycled . | . . . Retrieved Matter . | . . . Parts Self-Destructed 10 | . . 10 Prevented . | . . . Parts Restored . | . . . Kills | -11 -10 -10 ------- Run | Yrd Mat Sub Combat Hostiles Destroyed 19 | . 7 12 Guns 11 | . 7 4 Cannons 8 | . . 8 Classes Destroyed 9 | 2 6 1 Worker 1 | . 1 . Tunneler 1 | 1 . . Hauler 2 | . 2 . Recycler 2 | 1 1 . Mechanic 1 | . 1 . Watcher 2 | . 2 . Swarmer 2 | . 2 . Grunt 7 | . 5 2 Subdweller 10 | . . 10 Best Kill Streak 2 | 2 2 2 Combat Bots Only 2 | . 1 2 Max Kills in Single Turn 1 | 1 1 1 Gunslinging . | . . . Exploded . | . . . Melee . | . . . Uniques/NPCs Destroyed . | . . . Combat | -11 -10 -10 -------- Run | Yrd Mat Sub Hostile Shots Fired 108 | . 26 82 Missed 30 | . 9 21 Hits 78 | . 17 61 Projectile 78 | . 17 61 Critical Strikes 2 | . . 2 Damage Taken 1257 | . 186 1071 Core 267 | . 46 221 Absorbed by Shields 265 | . . 265 Core Remaining (%) 100 | 100 . . Volleys Fired 126 | 4 55 67 Largest 2 | 2 2 2 Hottest 145 | 70 95 145 Shots Fired 240 | 8 110 122 Gun 176 | 8 108 60 Cannon 61 | . 2 59 Launcher 3 | . . 3 Special . | . . . Kinetic 121 | 4 55 62 Thermal 115 | 3 55 57 Explosive 3 | . . 3 Electromagnetic 1 | 1 . . Robot Hit Streak 21 | 5 7 21 Robot Miss Streak 5 | 2 5 2 Penetration Max . | . . . Secondary Targets . | . . . Shots Hit Robots 159 | 5 63 91 Core Hits 50 | 3 25 22 Critical Kills 2 | . 1 1 Critical Parts Destroyed . | . . . Critical Strikes 7 | . 4 3 Burn 4 | . 3 1 Destroy 3 | . 1 2 Melee Attacks 31 | . 1 30 Impact 1 | . 1 . Slashing 30 | . . 30 Piercing . | . . . Sneak Attacks . | . . . Combat Hostiles . | . . . Follow-up Attacks . | . . . Damage Inflicted 2025 | 63 679 1283 Guns 1193 | 63 659 471 Cannons 832 | . 20 812 Explosions . | . . . Melee . | . . . Ramming . | . . . Kinetic 903 | 26 278 599 Thermal 1122 | 37 401 684 Explosive . | . . . Electromagnetic . | . . . Impact . | . . . Slashing . | . . . Piercing . | . . . Highest Corruption 6 | . 6 6 Average Corruption 4 | . 4 3 Corruption Purged 6 | . . 6 Corruption Blocked . | . . . Effects 32 | . 23 9 Message Errors 7 | . 3 4 Matter Fused 8 | . 6 2 Heat Flow Errors 1 | . 1 . Energy Discharges 7 | . 5 2 Parts Rejected 1 | . 1 . Data Loss (minor) 6 | . 5 1 Data Loss (major) 1 | . 1 . Alerts 1 | . 1 . Overload Shots . | . . . Overflow Damage 5 | . . 5 Projectiles 5 | . . 5 Explosions . | . . . Melee . | . . . Knockbacks 5 | . . 5 Impact . | . . . Kinetic 5 | . . 5 Secondary . | . . . Self-Inflicted Damage 18 | . . 18 Shots 2 | . . 2 Rammed . | . . . Targets Rammed . | . . . Kicked . | . . . Crushed . | . . . Highest Temperature 370 | 40 370 16 Average Temperature 49 | 19 53 6 Received Heat Transfer 162 | . 90 72 Siege Activations . | . . . Martial Activations . | . . . Shielding Activations . | . . . Robots Disrupted . | . . . Combat Hostiles . | . . . Robots Corrupted . | . . . Combat Hostiles . | . . . Parts Fried . | . . . Impact Corruptions . | . . . Robots Melted . | . . . Combat Hostiles . | . . . Parts Melted 5 | . 3 2 Heat Transferred 2849 | 111 1332 1406 Parts Sabotaged . | . . . Parts Stolen . | . . . Parts Stripped . | . . . Power Chain Reactions . | . . . Alert | -11 -10 -10 ------- Run | Yrd Mat Sub Maximum Alert Level . | . . . Low Security (%) 100 | 100 100 . Level 1 . | . . . Level 2 . | . . . Level 3 . | . . . Level 4 . | . . . Level 5 . | . . . High Security . | . . . Max Security . | . . . Peak Influence 93 | 5 93 . Initial 3 | . 3 . Average 22 | 3 23 . Influence Increases 351 | 10 291 50 Destroy 0b10 Robot/C 180 | . 140 40 Destroy 0b10 Robot/NC 45 | 10 35 . Destroy Leader 48 | . 38 10 Successful Hack 17 | . 17 . Disable Machine 15 | . 15 . Destroy Structure 1 | . 1 . Lose Combat Pursuer 45 | . 45 . Influence Decreases 351 | 5 296 50 Entered New Map 2 | . 2 . Time Decay 339 | 5 294 40 Lost Part 10 | . . 10 Squads Dispatched 1 | . 1 . Investigation 1 | . 1 . Extermination . | . . . Reinforcement . | . . . Assault . | . . . Garrison . | . . . Intercept . | . . . Searches Triggered . | . . . Construction Impeded . | . . . Haulers Reinforced . | . . . Active Scanning Responses . | . . . Cargo Convoy Interrupts . | . . . Stealth | -11 -10 -10 --------- Run | Yrd Mat Sub Distress Signals 2 | . 2 . Communications Jammed . | . . . Distress Signals . | . . . Times Spotted 31 | . 19 12 Peak Tracking Total 3 | . 3 2 Tactical Retreats 2 | . 2 . Traps | -11 -10 -10 ------- Run | Yrd Mat Sub Traps Triggered 9 | . 7 2 Indirectly . | . . . Trap Hack Attempts . | . . . Triggered . | . . . Disarmed . | . . . Reprogrammed 5 | . 5 . Reused . | . . . Traps Extracted . | . . . Installed . | . . . Triggered . | . . . Machines | -11 -10 -10 ---------- Run | Yrd Mat Sub Machines Disabled 1 | . 1 . Max in Single Turn 1 | . 1 . Machines Repaired . | . . . Machines Dismantled . | . . . Machines Sabotaged . | . . . Overloaded Fab Kills . | . . . Hacking | -11 -10 -10 --------- Run | Yrd Mat Sub Machines Accessed 7 | . 7 . Terminals 7 | . 7 . Fabricators . | . . . Repair Stations . | . . . Recycling Units . | . . . Scanalyzers . | . . . Garrison Access . | . . . Total Hacks 12 | . 12 . Successful 10 | . 10 . Failed 2 | . 2 . Catastrophic . | . . . Database Lockouts . | . . . Manual 6 | . 6 . Terminals 12 | . 12 . Fabricators . | . . . Repair Stations . | . . . Recycling Units . | . . . Scanalyzers . | . . . Garrison Access . | . . . Terminal Hacks 4 | . 4 . Branch Access Points 1 | . 1 . Reprogram Traps 1 | . 1 . Zone Layout 2 | . 2 . Fabricator Hacks . | . . . Repair Station Hacks . | . . . Recycling Unit Hacks . | . . . Scanalyzer . | . . . Garrison Access Hacks . | . . . Unauthorized Hacks 6 | . 6 . Terminals 6 | . 6 . Botnet 1 | . 1 . Skim 5 | . 5 . Fabricators . | . . . Repair Stations . | . . . Recycling Units . | . . . Scanalyzers . | . . . Garrison Access . | . . . Data Cores Recovered . | . . . Used . | . . . Hacking Detections 4 | . 4 . Full Trace Events . | . . . Feedback Events . | . . . Feedback Blocked . | . . . Robot Schematics Acquired . | . . . Robots Built . | . . . Authchips . | . . . Time . | . . . Total Robot Build Rating . | . . . Part Schematics Acquired . | . . . Parts Built . | . . . Authchips . | . . . Time . | . . . Total Part Build Rating . | . . . Part Studies Acquired . | . . . Parts Repaired . | . . . Time . | . . . Parts Recycled . | . . . Recycled Matter . | . . . Retrieved Matter . | . . . Retrieved Components . | . . . Parts Scanalyzed . | . . . Part Schematics Acquired . | . . . Parts Damaged . | . . . Bothacking | -11 -10 -10 ------------ Run | Yrd Mat Sub Used RIF Installer . | . . . Robots Hacked . | . . . Non-combat . | . . . Combat . | . . . Robot Hacks Applied . | . . . Relay Couplers Released . | . . . Fabnet Peak Effective % . | . . . Robots Rewired . | . . . Allies Hacked . | . . . Hacks Repelled . | . . . Allies | -11 -10 -10 -------- Run | Yrd Mat Sub Total Allies . | . . . Largest Group . | . . . Highest-Rated Group . | . . . Highest-Rated Ally . | . . . Total Orders . | . . . Ally Attacks . | . . . Total Damage . | . . . Kills . | . . . Allies Corrupted . | . . . Allies Melted . | . . . Intel | -11 -10 -10 ------- Run | Yrd Mat Sub Active Infowar (turns) 1037 | 17 976 44 Seismic 1037 | 17 976 44 Robot Analysis Total . | . . . Derelict Logs Recovered . | . . . Drone Launches . | . . . Drone Recoveries . | . . . Exploration | -11 -10 -10 ------------- Run | Yrd Mat Sub Turns Passed 2759 | 38 976 1745 Spaces Moved 1234 | 20 513 701 Core . | . . . Treads 611 | . . 611 Legs 602 | 20 513 69 Wheels 21 | . . 21 Hover . | . . . Flight . | . . . Fastest Speed 120 | 120 120 120 Average Speed 155 | 120 146 163 Slowest Speed 260 | 120 260 260 Overloaded Moves . | . . . Propulsion Burnouts . | . . . Robots Hopped . | . . . Potential Cave-ins 6 | . . 6 Cave-ins Triggered . | . . . Exploration Rate (%) 42 | 3 92 33 Regions Visited 2 Branch Regions 1 Pre-discovered Areas 1 | . 1 . Known Exits Taken . | . . . Unknown Exits Taken 2 | 1 1 . Scrap Searched 6 | . . 6 Spaces Dug 17 | . 1 16 Terrain Destroyed 54 | . 1 53 Melee 12 | . 1 11 Projectile 7 | . . 7 AOE 35 | . . 35 Terrain Rammed . | . . . Walls Destroyed . | . . . Machines Disabled . | . . . Actions | -11 -10 -10 --------- Run | Yrd Mat Sub Total 1793 | 25 640 1128 Wait 309 | . 31 278 Move 1232 | 19 512 701 Hop . | . . . Pick Up 23 | . 14 9 Fast Attach 10 | 1 6 3 Attach 7 | . . 7 Detach 2 | . . 2 Swap 31 | 1 9 21 Drop 22 | . 12 10 Fire 126 | 4 55 67 Melee 31 | . 1 30 Ram . | . . . Kick . | . . . Crush . | . . . Escape Stasis . | . . . Rewire . | . . . Trap . | . . . Miscellaneous . | . . . Route ------- -11/Scrapyard -10/Materials (discovered 6 exits: *Mat x3 / *Min x2 / [*Sub]) -10/Subcaves (discovered 3 exits: [*Mat] / Rec / [*Scr]) History --------- Turn | Location | Event 1 | -11/Scrapyard | Discovered new exit (range 3) 39 | -11/Scrapyard | Entered Materials 92 | -10/Materials | Identified exit to Mines 264 | -10/Materials | Discovered new exit (range 16) 318 | -10/Materials | Build established: Mutant 430 | -10/Materials | Discovered new exit (range 14) 606 | -10/Materials | Discovered new exit (range 4) 698 | -10/Materials | Identified exit to Materials 803 | -10/Materials | Learned location of Subcaves (-10) 840 | -10/Materials | Learned 2 Mines zone layouts 1015 | -10/Materials | Entered Subcaves 1016 | -10/Subcaves | Approached by a straggling Scientist 1016 | -10/Subcaves | Identified exit to Recycling 1607 | -10/Subcaves | Discovered new exit (range 9) 1830 | -10/Subcaves | Scientist uncovered a shortcut to Scraptown 1867 | -10/Subcaves | Shifting Twisted Machinery released Shrapnel Trap 1872 | -10/Subcaves | Shifting Twisted Machinery released Mak. Laser 2056 | -10/Subcaves | Core integrity fell below 50% 2551 | -10/Subcaves | Ambushed by Subdweller buried in earth 2593 | -10/Subcaves | Lost 3 parts (1u2w) 2745 | -10/Subcaves | Core integrity fell below 20% 2760 | -10/Subcaves | Destroyed by DP-P2F(R) with Subdweller Machine Gun Last Messages --------------- 02552_ LJ-484(R): "NAT20!" 02552_ Shield Generator destroyed. 02554_ The unstable cave ceiling collapses. 02554_ Slug Cannon destroyed. 02562_ Particle Gun destroyed. 02572_ Destroyed Sub. Power Source. 02574_ Disposable Heat Sink melted. 02574_ Unknown Device melted. 02574_ LJ-484(R) destroyed. 02579_ Acquired 48 matter. 02582_ Acquired Sub. Monowheel. 02683_ Triggered Piercing Trap. 02683_ Spikes shoot up from the floor. 02683_ Critical hit (Impale). 02683_ Spk. Treads destroyed. 02700_ Triggered Piercing Trap. 02700_ Spikes shoot up from the floor. 02700_ Critical hit (Impale). 02715_ Acquired Spk. Treads. 02749_ 0L-R13(R) destroyed. Map ----- +----------------------------------------------------+ | ?????????????????????????????????????????????????? | | ?????????????????????????????????????????????????? | | ?????????????????????????????????????????????????? | | ?????????????????????????????????????????????????? | | ?????????????????????????????????????????????????? | | ???????????????????????????? ????????????????????? | | ??????????????????????????? ##???????????????????? | | ??????????????????????????? ???????????????????? | | ?????????????????????????? ????????????????????? | | ???###????######?????????? ????????????????????? | | ??## ##?### #???####??? ##???????????????????? | | ??# ### #???## ##?? ##??????????????????? | | ?## ##??# #?? #??????????????????? | | ## #??# ### #??????????????????? | | # #??# #??????????????????? | | ##### #???????????????????? | | ### ##???????????????????? | | ##????????????????????? | | ### ####### ##?????????????????????? | | #?# #?????##### # #?????????????????????? | | ## #????????### #?????????????????????? | | ## ????????# ##??#??????????????????? | | ### ??????## ### ##?????????????????? | | ### #### ???## #?????????????????? | | ### #????? ?## #?????????????????? | | #?## #????????# @ ##?????????????????? | | #??## ####???????# #??????????????????? | | ##???####??????????# [%= ???????????????? | | ???????????????????## R #??????????????? | | ????????????????????## ### #??????????????? | | ?????????????????????# ???# ### ##??????????????? | | ?????????????????????##????##??###???????????????? | | ?????????????????????????????????????????????????? | | ?????????????????????????????????????????????????? | | ?????????????????????????????????????????????????? | | ?????????????????????????????????????????????????? | | ?????????????????????????????????????????????????? | | ?????????????????????????????????????????????????? | | ?????????????????????????????????????????????????? | | ?????????????????????????????????????????????????? | | ?????????????????????????????????????????????????? | | ?????????????????????????????????????????????????? | | ?????????????????????????????????????????????????? | | ?????????????????????????????????????????????????? | | ?????????????????????????????????????????????????? | | ?????????????????????????????????????????????????? | | ?????????????????????????????????????????????????? | | | | | | | +----------------------------------------------------+ Best States ------------- Heat Dissipation 47 Energy Generation 10 Energy Capacity 250 Matter Stores 300 Matter Capacity 300 Sight Range 16 Terrain Scan Density 10 Evasion (%) 55 Recoil Reduction 2 Item Schematics ----------------- None Robot Schematics ------------------ None Fabricated ------------ Nothing Repaired ---------- Nothing Studied --------- None Alien Tech Used ----------------- None Achievements -------------- Do Not Disturb Nice Directions, Buddy Challenges ------------ None Game ------ Seed RagnarokDynamicLance Manual? 0 Play Time 00:21:12 Cumulative 241.8 hours Start 2026.08.29 @ 22:28:41 End 2026.08.29 @ 22:48:25 Sessions 1 Manual Loads 0 Difficulty Rogue Special Mode None Game No. 157 Rogue 157 Adventurer 0 Explorer 0 Win Type - Total 21 Types 10/0/3/8/0/0/0/0/0/0 Lore% 71 Gallery% 61 Achievement% 43 Wizard Run 0 Options --------- Layout 0 ASCII 0 Keyboard 1 Movement Numpad Keybinds 0 Fullscreen 1 Font 36/Proggy Map View 76x50 Zoom Use 0% Tactical HUD 1 Map Filters NONE Filters NONE Steam 1 RUN: a8160a5d-7bc2-42c3-b5e8-3fb03dd3fb66